bitfinex/quotes_BTCUSD_20250927
["timestamp","ask_amount","ask_price","bid_price","bid_amount"]
[1758970310991,0.93211503,109730.0,109720.0,0.06178]
[1758970317535,0.64363503,109730.0,109720.0,0.06178]
[1758970317717,0.93207503,109730.0,109720.0,0.06178]
[1758970318878,0.91777684,109730.0,109720.0,0.06178]
[1758970319283,0.47070556,109730.0,109720.0,0.06178]
[1758970319509,0.77600284,109730.0,109720.0,0.06178]
[1758970320274,0.48756284,109730.0,109720.0,0.06178]
[1758970320476,0.77600284,109730.0,109720.0,0.06178]
[1758970320850,0.18226556,109730.0,109720.0,0.08000821]
[1758970321057,0.48756284,109730.0,109720.0,0.08000821]
[1758970321475,0.18226556,109730.0,109720.0,0.08000821]
[1758970321689,0.48756284,109730.0,109720.0,0.26229038]
[1758970321901,0.48756284,109730.0,109720.0,0.24406217]
[1758970322112,0.48756284,109730.0,109720.0,0.06178]
[1758970322355,0.48756284,109730.0,109720.0,0.08000821]
[1758970322558,0.48756284,109730.0,109720.0,0.06178]
[1758970322961,0.18226556,109730.0,109720.0,0.08000821]
[1758970323180,0.48756284,109730.0,109720.0,0.08000821]
[1758970323944,0.48756284,109730.0,109720.0,0.06178]
[1758970325304,0.47671284,109730.0,109720.0,0.06178]
[1758970330693,0.40031299,109730.0,109720.0,0.06178]
[1758970331569,0.41116299,109730.0,109720.0,0.06178]
[1758970332733,0.41269299,109730.0,109720.0,0.06178]
[1758970332942,0.18226556,109730.0,109720.0,0.06178]
[1758970333140,0.18226556,109730.0,109720.0,0.24406217]
[1758970333370,0.41116299,109730.0,109720.0,0.06178]
[1758970333639,0.18226556,109730.0,109720.0,0.06178]
[1758970334186,0.18226556,109730.0,109720.0,0.24406217]
[1758970334594,0.18226556,109730.0,109720.0,0.06178]
[1758970336879,0.18226556,109730.0,109720.0,0.24406217]
[1758970339170,0.41116299,109730.0,109720.0,0.06178]
[1758970339897,0.41116299,109730.0,109720.0,0.24406217]
[1758970340130,0.41116299,109730.0,109720.0,0.06178]
[1758970340732,0.18226556,109730.0,109720.0,0.24406217]
[1758970341128,0.18226556,109730.0,109720.0,0.06178]
[1758970341872,0.18226556,109730.0,109720.0,0.24406217]
[1758970342131,0.18226556,109730.0,109720.0,0.06178]
[1758970342723,0.18226556,109730.0,109720.0,0.24406217]
[1758970342937,0.18226556,109730.0,109720.0,0.06178]
[1758970344894,0.41116299,109730.0,109720.0,0.06178]
[1758970346269,0.18226556,109730.0,109720.0,0.06178]
[1758970354788,0.84780752,109740.0,109730.0,0.03003]
[1758970354990,0.83252746,109740.0,109730.0,0.03003]
[1758970355198,0.83252746,109740.0,109730.0,0.0549]
[1758970355797,0.54412746,109740.0,109730.0,0.0549]
[1758970356005,0.83952746,109740.0,109730.0,0.0549]
[1758970356212,0.84052746,109740.0,109730.0,0.0549]
[1758970356865,0.83952746,109740.0,109730.0,0.0549]
[1758970357265,0.83252746,109740.0,109730.0,0.0549]
[1758970358042,0.83348746,109740.0,109730.0,0.0549]
[1758970358415,0.83252746,109740.0,109730.0,0.0549]
[1758970358618,0.31623003,109740.0,109730.0,0.0549]
[1758970358832,0.83352746,109740.0,109730.0,0.0549]
[1758970359247,0.54512746,109740.0,109730.0,0.0549]
[1758970359463,0.83352746,109740.0,109730.0,0.0549]
[1758970361155,0.83352746,109740.0,109730.0,0.06003]
[1758970362833,0.54512746,109740.0,109730.0,0.07825655]
[1758970363073,0.83199746,109740.0,109730.0,0.07825655]
[1758970365156,0.83099746,109740.0,109730.0,0.07825655]
[1758970365347,0.83099746,109740.0,109730.0,0.08325655]
[1758970365561,0.83099746,109740.0,109730.0,0.11068095]
[1758970365762,0.60210003,109740.0,109730.0,0.11068095]
[1758970365976,0.83099746,109740.0,109730.0,0.11168095]
[1758970367453,0.31370003,109740.0,109730.0,0.11168095]
[1758970367582,0.83099746,109740.0,109730.0,0.11168095]
[1758970369859,0.54259746,109740.0,109730.0,0.11168095]
[1758970371209,0.54412746,109740.0,109730.0,0.11168095]
[1758970372599,0.54412746,109740.0,109730.0,0.10861095]
[1758970372821,0.54412746,109740.0,109730.0,0.10655095]
[1758970373024,0.54412746,109740.0,109730.0,0.0883244]
[1758970373244,0.31523003,109740.0,109730.0,0.0883244]
[1758970373570,0.54412746,109740.0,109730.0,0.0883244]
[1758970377447,0.31523003,109740.0,109730.0,0.0883244]
[1758970377647,0.54412746,109740.0,109730.0,0.0883244]
[1758970378060,0.31523003,109740.0,109730.0,0.0883244]
[1758970378287,0.54412746,109740.0,109730.0,0.0883244]
[1758970379122,0.31523003,109740.0,109730.0,0.0883244]
[1758970379422,0.54412746,109740.0,109730.0,0.0883244]
[1758970384397,0.54508746,109740.0,109730.0,0.0883244]
[1758970384627,0.54412746,109740.0,109730.0,0.0883244]
[1758970386330,0.54508746,109740.0,109730.0,0.0883244]
[1758970387238,0.54412746,109740.0,109730.0,0.0883244]
[1758970387674,0.54412734,109740.0,109730.0,0.0883244]
[1758970388090,0.77398477,109740.0,109730.0,0.0609]
[1758970388978,1.85805777,109740.0,109730.0,0.0609]
[1758970389304,1.71872377,109740.0,109730.0,0.0609]
[1758970390937,1.17925477,109740.0,109730.0,0.0609]
[1758970392737,1.02661502,109740.0,109730.0,0.0609]
[1758970400174,1.29277584,109740.0,109730.0,0.0609]
[1758970400587,0.98762073,109740.0,109730.0,0.06582]
[1758970400811,1.29277584,109740.0,109730.0,0.06582]
[1758970402174,1.29277584,109740.0,109730.0,0.0609]
[1758970402926,1.00445584,109740.0,109730.0,0.0609]
[1758970403138,1.29277584,109740.0,109730.0,0.0609]
[1758970403704,1.10601386,109740.0,109730.0,0.0609]
[1758970404719,0.81769386,109740.0,109730.0,0.0609]
[1758970404926,1.10601386,109740.0,109730.0,0.07796966]
[1758970405137,1.09171704,109740.0,109730.0,0.07796966]
[1758970405711,1.09171704,109740.0,109730.0,0.0609]
[1758970407107,1.11889402,109740.0,109730.0,0.0609]
[1758970407307,0.83057402,109740.0,109730.0,0.0609]
[1758970407532,1.11889402,109740.0,109730.0,0.0609]
[1758970409842,1.13319084,109740.0,109730.0,0.0609]
[1758970411522,1.13315084,109740.0,109730.0,0.0609]
[1758970412821,0.84487084,109740.0,109730.0,0.0609]
[1758970413031,1.13315084,109740.0,109730.0,0.0609]
[1758970413541,1.13314891,109740.0,109730.0,0.0609]
[1758970415778,1.11885209,109740.0,109730.0,0.0609]
[1758970416648,0.52541698,109740.0,109730.0,0.0609]
[1758970416886,0.81369698,109740.0,109730.0,0.0609]
[1758970417116,1.11885209,109740.0,109730.0,0.0609]
[1758970418200,0.91641682,109740.0,109730.0,0.0609]
[1758970418407,1.24146797,109740.0,109730.0,0.0609]
[1758970418620,1.56091999,109740.0,109730.0,0.0609]
[1758970423495,1.53592799,109740.0,109730.0,0.0609]
[1758970425248,1.47452799,109740.0,109730.0,0.0609]
[1758970425468,1.50195409,109740.0,109730.0,0.0609]
[1758970427678,1.48924609,109740.0,109730.0,0.06285]
[1758970427882,1.48924609,109740.0,109730.0,0.06582]
[1758970428065,1.27454609,109740.0,109730.0,0.06582]
[1758970428887,1.26024918,109740.0,109730.0,0.06582]
[1758970431997,1.27454617,109740.0,109730.0,0.06582]
[1758970434755,1.07239933,109740.0,109730.0,0.06582]
[1758970434901,1.09969357,109740.0,109730.0,0.06582]
[1758970440740,0.81953854,109740.0,109730.0,0.06582]
[1758970440944,1.03266854,109740.0,109730.0,0.06582]
[1758970441532,0.99874355,109740.0,109730.0,0.06582]
[1758970444495,1.01304054,109740.0,109730.0,0.06582]
[1758970444904,1.01304054,109740.0,109730.0,0.06285]
[1758970445285,0.72488054,109740.0,109730.0,0.06285]
[1758970445482,1.01304054,109740.0,109730.0,0.06285]
[1758970445711,0.99874355,109740.0,109730.0,0.06285]
[1758970446412,0.99874355,109740.0,109730.0,0.0609]
[1758970446795,0.99874355,109740.0,109730.0,0.03087]
[1758970447005,0.99874355,109740.0,109730.0,0.0609]
[1758970448911,1.0130409,109740.0,109730.0,0.0609]
[1758970454610,1.39470342,109740.0,109730.0,0.0609]
[1758970456112,1.10654342,109740.0,109730.0,0.0609]
[1758970456319,1.39462342,109740.0,109730.0,0.0609]
[1758970458542,1.38032607,109740.0,109730.0,0.0609]
[1758970461602,1.39462339,109740.0,109730.0,0.0609]
[1758970473855,1.39450339,109740.0,109730.0,0.0609]
[1758970475251,0.70768576,109740.0,109730.0,0.06292]
[1758970475460,1.39450339,109740.0,109730.0,0.06292]
[1758970476109,1.16556418,109740.0,109730.0,0.06292]
[1758970477363,1.16556418,109740.0,109730.0,0.0609]
[1758970477528,1.39450339,109740.0,109730.0,0.0609]
[1758970479985,1.17975794,109740.0,109730.0,0.0609]
[1758970480399,1.3894506,109740.0,109730.0,0.0609]
[1758970481135,1.37515328,109740.0,109730.0,0.0609]
[1758970483972,1.38945069,109740.0,109730.0,0.0609]
[1758970485292,1.37515328,109740.0,109730.0,0.0609]
[1758970486427,1.14621407,109740.0,109730.0,0.0609]
[1758970486942,1.14621407,109740.0,109730.0,0.06292]
[1758970488458,1.37515328,109740.0,109730.0,0.06292]
[1758970488879,1.38157535,109740.0,109730.0,0.06292]
[1758970489473,1.39587276,109740.0,109730.0,0.06292]
[1758970492417,1.39587276,109740.0,109730.0,0.0609]
[1758970496134,0.70905513,109740.0,109730.0,0.0609]
[1758970496333,1.39587276,109740.0,109730.0,0.0609]
[1758970500535,1.38157535,109740.0,109730.0,0.0609]
[1758970501525,1.18443661,109740.0,109730.0,0.0609]
[1758970501769,3.36744661,109740.0,109730.0,0.0609]
[1758970503498,3.38174402,109740.0,109730.0,0.0609]
[1758970503710,3.41836649,109740.0,109730.0,0.0609]
[1758970505294,3.41836649,109740.0,109730.0,0.03087]
[1758970505498,3.40406908,109740.0,109730.0,0.03087]
[1758970506334,3.40406908,109740.0,109730.0,0.02987]
[1758970506547,3.40406908,109740.0,109730.0,0.02487]
[1758970506760,3.41206908,109740.0,109730.0,0.02487]
[1758970507597,4.01206908,109740.0,109730.0,0.02487]
[1758970508527,4.02636732,109740.0,109730.0,0.02487]
[1758970509200,4.12758307,109740.0,109730.0,0.02487]
[1758970509524,3.92253737,109740.0,109730.0,0.02487]
[1758970509761,4.10480147,109740.0,109730.0,0.02487]
[1758970510372,3.72208147,109740.0,109730.0,0.02487]
[1758970510595,4.10480147,109740.0,109730.0,0.02487]
[1758970514747,3.72329346,109740.0,109730.0,0.02487]
[1758970516155,3.34057346,109740.0,109730.0,0.02487]
[1758970516368,3.62821346,109740.0,109730.0,0.02487]
[1758970516574,3.72321346,109740.0,109730.0,0.02487]
[1758970516776,3.62821346,109740.0,109730.0,0.02487]
[1758970516959,3.72321346,109740.0,109730.0,0.02487]
[1758970517168,3.62821346,109740.0,109730.0,0.02487]
[1758970517375,3.72321346,109740.0,109730.0,0.02487]
[1758970518177,3.70891522,109740.0,109730.0,0.02487]
[1758970521286,3.72321346,109740.0,109730.0,0.02487]
[1758970527138,3.72320767,109740.0,109730.0,0.02487]
[1758970531728,0.18226556,109730.0,109720.0,0.00335]
[1758970531949,3.29998298,109730.0,109720.0,1e-08]
[1758970532136,3.32415298,109730.0,109720.0,1e-08]
[1758970532357,3.03663298,109730.0,109720.0,1e-08]
[1758970532538,3.44658819,109730.0,109720.0,1e-08]
[1758970532733,3.53529966,109730.0,109720.0,1e-08]
[1758970533056,3.15377966,109730.0,109720.0,1e-08]
[1758970533197,3.53529966,109730.0,109720.0,1e-08]
[1758970533428,3.54829966,109730.0,109720.0,1e-08]
[1758970533854,3.54829966,109730.0,109720.0,0.02252001]
[1758970534713,3.56259979,109730.0,109720.0,0.02252001]
[1758970534910,3.56559979,109730.0,109720.0,0.02252001]
[1758970535876,3.55129966,109730.0,109720.0,0.02252001]
[1758970538998,3.56559989,109730.0,109720.0,0.02252001]
[1758970542373,3.18307989,109730.0,109720.0,0.02252001]
[1758970542610,3.56559989,109730.0,109720.0,0.02252001]
[1758970548339,3.18307989,109730.0,109720.0,0.02252001]
[1758970548555,3.55121966,109730.0,109720.0,0.02252001]
[1758970549162,3.55121966,109730.0,109720.0,0.02760001]
[1758970551290,3.24591004,109730.0,109720.0,0.02760001]
[1758970551499,3.26021006,109730.0,109720.0,0.02760001]
[1758970552620,3.26017006,109730.0,109720.0,0.02760001]
[1758970553687,3.0477526,109730.0,109720.0,0.02760001]
[1758970553890,3.14130669,109730.0,109720.0,0.02760001]
[1758970554654,2.75890669,109730.0,109720.0,0.02760001]
[1758970555023,3.14130669,109730.0,109720.0,0.02760001]
[1758970558594,3.14126669,109730.0,109720.0,0.02760001]
[1758970558813,3.12696667,109730.0,109720.0,0.02760001]
[1758970560053,3.17269717,109730.0,109720.0,0.02760001]
[1758970560255,3.12696667,109730.0,109720.0,0.02760001]
[1758970560457,2.74460667,109730.0,109720.0,0.02760001]
[1758970560683,3.12696667,109730.0,109720.0,0.02760001]
[1758970561699,2.74460667,109730.0,109720.0,0.02760001]
[1758970561901,1.19472767,109730.0,109720.0,0.02760001]
[1758970562113,1.4963473,109730.0,109720.0,0.02760001]
[1758970562534,1.2090273,109730.0,109720.0,0.02760001]
[1758970562751,1.4963473,109730.0,109720.0,0.02760001]
[1758970565188,1.31703775,109730.0,109720.0,0.02760001]
[1758970565834,1.30273812,109730.0,109720.0,0.02760001]
[1758970567710,1.30269812,109730.0,109720.0,0.02760001]
[1758970569007,1.22572062,109730.0,109720.0,0.02760001]
[1758970569230,1.40798618,109730.0,109720.0,0.02760001]
[1758970570053,0.82969583,109730.0,109720.0,0.05763001]
[1758970570270,1.11697583,109730.0,109720.0,0.05763001]
[1758970570502,1.11697583,109730.0,109720.0,0.08505959]
[1758970570872,0.93844683,109730.0,109720.0,0.08505959]
[1758970571274,0.59021683,109730.0,109720.0,0.10505959]
[1758970571492,0.87745683,109730.0,109720.0,0.10505959]
[1758970572381,0.62239883,109730.0,109720.0,0.10505959]
[1758970572582,0.62239883,109730.0,109720.0,0.08505959]
[1758970572728,0.62239883,109730.0,109720.0,0.10105959]
[1758970572924,0.62275883,109730.0,109720.0,0.10105959]
[1758970575078,0.60845956,109730.0,109720.0,0.10105959]
[1758970577000,0.18226556,109730.0,109720.0,0.10105959]
[1758970577157,0.84281657,109740.0,109730.0,0.03003]
[1758970577378,1.10604657,109740.0,109730.0,0.03501]
[1758970577586,1.10604657,109740.0,109730.0,0.05886]
[1758970577802,1.10604657,109740.0,109730.0,0.08628685]
[1758970579199,1.10604657,109740.0,109730.0,0.09528685]
[1758970583471,0.81888657,109740.0,109730.0,0.09528685]
[1758970583825,1.10596657,109740.0,109730.0,0.09528685]
[1758970584240,1.43895756,109740.0,109730.0,0.09528685]
[1758970585185,1.21008657,109740.0,109730.0,0.09528685]
[1758970585390,1.43895756,109740.0,109730.0,0.09528685]
[1758970587967,0.92300657,109740.0,109730.0,0.09528685]
[1758970588124,1.43895756,109740.0,109730.0,0.09528685]
[1758970588335,1.44535897,109740.0,109730.0,0.09528685]
[1758970591680,1.45965565,109740.0,109730.0,0.09528685]
[1758970592725,0.63977388,109740.0,109730.0,1.14680277]
[1758970592939,0.6,109740.0,109730.0,1.46395467]
[1758970593149,0.6,109740.0,109730.0,1.17695467]
[1758970593352,0.6,109740.0,109730.0,1.46395467]
[1758970593553,0.6,109740.0,109730.0,1.55895467]
[1758970593761,0.6,109740.0,109730.0,1.10544629]
[1758970594186,0.6,109740.0,109730.0,1.39644629]
[1758970594388,0.6,109740.0,109730.0,1.49144629]
[1758970594580,0.6,109740.0,109730.0,1.48744629]
[1758970594988,0.6,109740.0,109730.0,1.10144629]
[1758970595201,0.6,109740.0,109730.0,1.51040629]
[1758970595688,0.6,109740.0,109730.0,1.12844629]
[1758970595891,0.6,109740.0,109730.0,1.51040629]
[1758970603686,0.40425001,109740.0,109730.0,1.51040629]
[1758970604537,0.40425001,109740.0,109730.0,0.95754431]
[1758970604759,0.40425001,109740.0,109730.0,1.51024629]
[1758970606646,0.40425001,109740.0,109730.0,1.47824629]
[1758970606857,0.40425001,109740.0,109730.0,1.74744629]
[1758970607858,0.40425001,109740.0,109730.0,1.78044629]
[1758970609405,0.40425001,109740.0,109730.0,1.32270431]
[1758970609605,0.40425001,109740.0,109730.0,1.78044629]
[1758970610172,0.40425001,109740.0,109730.0,1.83044629]
[1758970611478,0.40425001,109740.0,109730.0,1.78036629]
[1758970620170,0.40425001,109740.0,109730.0,1.87655629]
[1758970620548,0.40425001,109740.0,109730.0,1.78036629]
[1758970630727,0.40425001,109740.0,109730.0,1.78028358]
[1758970636547,0.21958759,109740.0,109730.0,1.78028358]
[1758970636745,0.21958759,109740.0,109730.0,1.62748623]
[1758970637699,0.50041828,109750.0,109740.0,0.55240085]
[1758970637914,0.30434247,109750.0,109740.0,1.14390548]
[1758970638085,0.30434247,109750.0,109740.0,1.16777548]
[1758970638583,0.30434247,109750.0,109740.0,1.19519163]
[1758970638785,0.30434247,109750.0,109740.0,1.20019163]
[1758970639231,0.30434247,109750.0,109740.0,1.22719163]
[1758970641175,0.30434247,109750.0,109740.0,1.22918163]
[1758970641355,0.30237247,109750.0,109740.0,1.23227163]
[1758970651159,0.30237247,109750.0,109740.0,0.927327]
[1758970656712,0.30443247,109750.0,109740.0,0.924237]
[1758970656922,0.30237247,109750.0,109740.0,0.927327]
[1758970657322,0.10298194,109750.0,109740.0,0.927327]
[1758970661771,0.10504194,109750.0,109740.0,0.927327]
[1758970665212,0.10504194,109750.0,109740.0,0.924237]
[1758970665412,0.10504194,109750.0,109740.0,0.922247]
[1758970666610,0.28994428,109750.0,109740.0,0.45343805]
[1758970666812,0.59488891,109750.0,109740.0,0.73975805]
[1758970667021,0.59488891,109750.0,109740.0,0.76978805]
[1758970669245,0.59488891,109750.0,109740.0,0.70960615]
[1758970669463,0.59488891,109750.0,109740.0,0.39963615]
[1758970674248,0.88120891,109750.0,109740.0,0.39963615]
[1758970675006,0.88120891,109750.0,109740.0,0.11331615]
[1758970675218,0.88120891,109750.0,109740.0,0.10831615]
[1758970675445,0.88120891,109750.0,109740.0,0.08231615]
[1758970675874,0.88120891,109750.0,109740.0,0.09131615]
[1758970679101,1.76849091,109750.0,109740.0,0.09131615]
[1758970679650,1.78278617,109750.0,109740.0,0.09131615]
[1758970679879,1.58827896,109750.0,109740.0,0.09131615]
[1758970682021,1.59468387,109750.0,109740.0,0.06128615]
[1758970682250,1.59468387,109750.0,109740.0,0.03387]
[1758970684028,1.59468387,109750.0,109740.0,0.03287]
[1758970684228,1.59468387,109750.0,109740.0,0.02387]
[1758970684641,1.59468387,109750.0,109740.0,0.02687]
[1758970685094,1.58038861,109750.0,109740.0,0.02687]
[1758970688233,1.59468514,109750.0,109740.0,0.02687]
[1758970692012,1.22706214,109750.0,109740.0,0.02687]
[1758970695737,0.94074214,109750.0,109740.0,0.02687]
[1758970695948,1.22694214,109750.0,109740.0,0.02687]
[1758970696561,1.37979601,109750.0,109740.0,0.02687]
[1758970697403,1.38049601,109750.0,109740.0,0.02687]
[1758970697789,1.36619948,109750.0,109740.0,0.02687]
[1758970699106,1.36549948,109750.0,109740.0,0.02687]
[1758970700871,1.37979578,109750.0,109740.0,0.02687]
[1758970703483,1.37980399,109750.0,109740.0,0.02687]
[1758970704088,1.60940324,109750.0,109740.0,0.02687]
[1758970704295,1.38050399,109750.0,109740.0,0.02687]
[1758970704752,1.37980399,109750.0,109740.0,0.02687]
[1758970704877,1.38050399,109750.0,109740.0,0.02687]
[1758970706733,1.59440694,109750.0,109740.0,0.02687]
[1758970709964,1.37980425,109750.0,109740.0,0.02687]
[1758970712164,1.17128431,109750.0,109740.0,0.02687]
[1758970712365,1.35351665,109750.0,109740.0,0.02687]
[1758970715164,1.33922009,109750.0,109740.0,0.02687]
[1758970719656,1.35351669,109750.0,109740.0,0.02687]
[1758970721418,1.35351669,109750.0,109740.0,0.03225]
[1758970721560,1.35351669,109750.0,109740.0,0.02901]
[1758970722338,1.35351669,109750.0,109740.0,0.02687]
[1758970726390,1.35351669,109750.0,109740.0,0.02901]
[1758970729208,1.35352535,109750.0,109740.0,0.02901]
[1758970730434,1.33922875,109750.0,109740.0,0.02901]
[1758970730852,1.33922875,109750.0,109740.0,0.02687]
[1758970731624,1.568128,109750.0,109740.0,0.02886]
[1758970731835,1.33922875,109750.0,109740.0,0.03192]
[1758970737773,1.35352535,109750.0,109740.0,0.03192]
[1758970738957,1.33922875,109750.0,109740.0,0.03192]
[1758970741926,1.35352535,109750.0,109740.0,0.03192]
[1758970742566,1.35352535,109750.0,109740.0,0.02886]
[1758970754231,1.13991193,109750.0,109740.0,0.03193]
[1758970756651,0.98731165,109750.0,109740.0,0.03193]
[1758970766058,0.97301505,109750.0,109740.0,0.03193]
[1758970768496,0.75910403,109750.0,109740.0,0.03193]
[1758970768645,5.28789503,109750.0,109740.0,0.03193]
[1758970769248,5.30219151,109750.0,109740.0,0.03193]
[1758970770458,5.03693982,109750.0,109740.0,0.03193]
[1758970770806,5.32273982,109750.0,109740.0,0.03193]
[1758970774716,5.32273982,109750.0,109740.0,0.02886]
[1758970776040,5.30844334,109750.0,109740.0,0.02886]
[1758970777385,5.30840334,109750.0,109740.0,0.02886]
[1758970777732,5.30840334,109750.0,109740.0,0.03183]
[1758970779181,5.3226999,109750.0,109740.0,0.03183]
[1758970784170,5.32270035,109750.0,109740.0,0.03183]
[1758970784716,5.32266035,109750.0,109740.0,0.03183]
[1758970786191,5.30836379,109750.0,109740.0,0.03183]
[1758970786416,5.02264379,109750.0,109740.0,0.03183]
[1758970786645,5.30836379,109750.0,109740.0,0.05925595]
[1758970788864,5.30832379,109750.0,109740.0,0.05925595]
[1758970789425,5.32262024,109750.0,109740.0,0.05925595]
[1758970789621,5.03694024,109750.0,109740.0,0.05925595]
[1758970789824,5.32262024,109750.0,109740.0,0.05925595]
[1758970792010,5.32262024,109750.0,109740.0,0.05628595]
[1758970795239,5.32262024,109750.0,109740.0,0.05952595]
[1758970796161,5.32262024,109750.0,109740.0,0.05628595]
[1758970798698,5.30832379,109750.0,109740.0,0.05628595]
[1758970799895,5.30832379,109750.0,109740.0,0.05952595]
[1758970801561,5.32262024,109750.0,109740.0,0.05952595]
[1758970801862,5.30832379,109750.0,109740.0,0.05952595]
[1758970804457,5.02264379,109750.0,109740.0,0.08955595]
[1758970804724,5.30824379,109750.0,109740.0,0.08955595]
[1758970805484,5.30824379,109750.0,109740.0,0.08655595]
[1758970806066,5.29954969,109750.0,109740.0,0.09555595]
[1758970806930,5.29954969,109750.0,109740.0,0.09655595]
[1758970810076,5.31384548,109750.0,109740.0,0.09655595]
[1758970812894,5.31384044,109750.0,109740.0,0.09655595]
[1758970813346,5.31384044,109750.0,109740.0,0.09132595]
[1758970816592,5.13468354,109750.0,109740.0,0.09132595]
[1758970817607,4.93569311,109750.0,109740.0,0.09132595]
[1758970817997,5.03008785,109750.0,109740.0,0.09132595]
[1758970818602,5.18270935,109750.0,109740.0,0.09132595]
[1758970821284,5.16841356,109750.0,109740.0,0.09132595]
[1758970824171,5.18270963,109750.0,109740.0,0.09132595]
[1758970825452,5.39732342,109750.0,109740.0,0.09132595]
[1758970828476,5.41161966,109750.0,109740.0,0.09132595]
[1758970830049,5.41162059,109750.0,109740.0,0.09132595]
[1758970831688,5.41162059,109750.0,109740.0,0.06129595]
[1758970831906,5.41162059,109750.0,109740.0,0.03387]
[1758970832105,5.42017835,109750.0,109740.0,0.03387]
[1758970832283,5.41162059,109750.0,109740.0,0.03387]
[1758970832482,5.44760367,109750.0,109740.0,0.03387]
[1758970833259,5.43904654,109750.0,109740.0,0.03387]
[1758970834481,5.4476025,109750.0,109740.0,0.03387]
[1758970834898,5.53631397,109750.0,109740.0,0.03387]
[1758970835376,5.52201773,109750.0,109740.0,0.03387]
[1758970836241,5.52201773,109750.0,109740.0,0.03287]
[1758970837352,5.52201773,109750.0,109740.0,0.02387]
[1758970837496,5.52141773,109750.0,109740.0,0.02687]
[1758970837718,5.43270626,109750.0,109740.0,0.02687]
[1758970837921,5.43270626,109750.0,109740.0,1e-08]
[1758970838124,5.45706626,109750.0,109740.0,1e-08]
[1758970838351,5.47136407,109750.0,109740.0,1e-08]
[1758970840056,5.47136407,109750.0,109740.0,0.02316001]
[1758970841273,5.48170842,109750.0,109740.0,0.02316001]
[1758970841421,5.47136407,109750.0,109740.0,0.02316001]
[1758970842292,5.81136407,109750.0,109740.0,1e-08]
[1758970842520,0.18224895,109740.0,109730.0,0.0002472]
[1758970842669,5.07357565,109740.0,109730.0,0.0002472]
[1758970842892,4.96989665,109740.0,109730.0,0.0002472]
[1758970843100,4.96989024,109740.0,109730.0,0.0002472]
[1758970843322,4.82706785,109740.0,109730.0,0.0002472]
[1758970843735,4.82706785,109740.0,109730.0,0.0012472]
[1758970843948,4.82706785,109740.0,109730.0,0.0072472]
[1758970846236,4.79963824,109740.0,109730.0,0.0072472]
[1758970847272,4.31026824,109740.0,109730.0,0.0072472]
[1758970847611,4.31026824,109740.0,109730.0,0.0124172]
[1758970851587,4.32456632,109740.0,109730.0,0.0124172]
[1758970853369,4.32456632,109740.0,109730.0,0.0092472]
[1758970855124,4.31026824,109740.0,109730.0,0.0092472]
[1758970855923,4.30385653,109740.0,109730.0,0.0072472]
[1758970856154,4.31026742,109740.0,109730.0,0.0072472]
[1758970857912,4.31026742,109740.0,109730.0,0.0093772]
[1758970858358,4.32456555,109740.0,109730.0,0.0093772]
[1758970858586,3.63783597,109740.0,109730.0,0.0093772]
[1758970858776,4.32456555,109740.0,109730.0,0.0093772]
[1758970860795,4.32456555,109740.0,109730.0,0.0072472]
[1758970861350,4.33312015,109740.0,109730.0,0.0072472]
[1758970862867,4.3331214,109740.0,109730.0,0.0072472]
[1758970870830,4.31882327,109740.0,109730.0,0.0072472]
[1758970871982,4.3188416,109740.0,109730.0,0.0072472]
[1758970874295,4.31884228,109740.0,109730.0,0.0072472]
[1758970876321,4.31884347,109740.0,109730.0,0.0072472]
[1758970878605,3.63211389,109740.0,109730.0,0.0072472]
[1758970878824,3.93740382,109740.0,109730.0,0.0072472]
[1758970882016,3.75334763,109740.0,109730.0,0.0072472]
[1758970882221,3.93559658,109740.0,109730.0,0.0072472]
[1758970883389,3.75951714,109740.0,109730.0,0.0072472]
[1758970884128,3.75951714,109740.0,109730.0,0.0093572]
[1758970884341,3.75951714,109740.0,109730.0,0.0072472]
[1758970885705,3.75951714,109740.0,109730.0,0.0062472]
[1758970886422,3.75951714,109740.0,109730.0,0.0002472]
[1758970890682,3.84822861,109740.0,109730.0,0.0002472]
[1758970892502,3.45422721,109740.0,109730.0,0.0053472]
[1758970892745,3.75951714,109740.0,109730.0,0.0053472]
[1758970897903,3.75901714,109740.0,109730.0,0.0053472]
[1758970902215,3.75901714,109740.0,109730.0,0.0023572]
[1758970902836,3.75901714,109740.0,109730.0,0.0002472]
[1758970906382,3.85241286,109740.0,109730.0,0.0002472]
[1758970906569,3.85241213,109740.0,109730.0,0.0002472]
[1758970906742,3.87984307,109740.0,109730.0,0.0234072]
[1758970908758,3.90309307,109740.0,109730.0,0.0234072]
[1758970911031,3.90309307,109740.0,109730.0,0.0286172]
[1758970916445,3.59780314,109740.0,109730.0,0.0286172]
[1758970916645,3.90309307,109740.0,109730.0,0.0286172]
[1758970921557,3.90309307,109740.0,109730.0,0.0234072]
[1758970923190,3.90309307,109740.0,109730.0,0.0254172]
[1758970924894,3.90309307,109740.0,109730.0,0.0286172]
[1758970925653,3.61777307,109740.0,109730.0,0.0286172]
[1758970925957,3.59772314,109740.0,109730.0,0.0286172]
[1758970926131,3.90301307,109740.0,109730.0,0.0286172]
[1758970936560,3.90301307,109740.0,109730.0,0.0285772]
[1758970940743,4.05554838,109740.0,109730.0,0.0285772]
[1758970942316,4.05554838,109740.0,109730.0,0.0254172]
[1758970945999,3.59772314,109740.0,109730.0,0.0254172]
[1758970946178,4.05554838,109740.0,109730.0,0.0254172]
[1758970947160,3.31248314,109740.0,109730.0,0.0254172]
[1758970947360,3.82659576,109740.0,109730.0,0.0284172]
[1758970947776,4.05550838,109740.0,109730.0,0.0284172]
[1758970947983,3.82659576,109740.0,109730.0,0.0284172]
[1758970948859,3.88115406,109740.0,109730.0,0.0284172]
[1758970951874,3.87473121,109740.0,109730.0,0.0284172]
[1758970952070,3.88115169,109740.0,109730.0,0.0284172]
[1758970954433,3.87258833,109740.0,109730.0,0.0284172]
[1758970957017,3.87258738,109740.0,109730.0,0.0284172]
[1758970959342,3.41476214,109740.0,109730.0,0.0284172]
[1758970959550,3.87258738,109740.0,109730.0,0.0284172]
[1758970960493,3.41476214,109740.0,109730.0,0.0284172]
[1758970960701,3.64367476,109740.0,109730.0,0.0284172]
[1758970961097,4.21258738,109740.0,109730.0,0.0284172]
[1758970963077,4.21254738,109740.0,109730.0,0.0284172]
[1758970969289,3.75472214,109740.0,109730.0,0.0284172]
[1758970969495,4.21254738,109740.0,109730.0,0.0284172]
[1758970972441,4.22110761,109740.0,109730.0,0.0284172]
[1758970985022,4.05284464,109740.0,109730.0,0.0284172]
[1758970990330,3.5950194,109740.0,109730.0,0.0284172]
[1758970990503,4.05284464,109740.0,109730.0,0.0284172]
[1758970993965,3.84125926,109740.0,109730.0,0.0284172]
[1758970995973,3.38343402,109740.0,109730.0,0.0284172]
[1758970996187,3.5849157,109740.0,109730.0,0.0284172]